[Event "*** Titled Tuesday 3|2 Blitz"]
[Site "Chess.com"]
[Date "2015.08.04"]
[Round "4"]
[White "Cryptochess"]
[Black "stefanodinn"]
[Result "0-1"]
[WhiteElo "2339"]
[BlackElo "2142"]
[TimeControl "180+2"]
[EndTime "12:18:16 PDT"]
[Termination "stefanodinn won by checkmate"]

1. e4 {[%clk 0:03:01.9]} 1... c5 {[%clk 0:02:59.8]} 2. Nc3 {[%clk 0:03:01.8]}
2... d6 {[%clk 0:03:00.1]} 3. g3 {[%clk 0:03:02.8]} 3... g6 {[%clk 0:03:00.3]}
4. Bg2 {[%clk 0:03:03.6]} 4... Bg7 {[%clk 0:03:00.9]} 5. d3 {[%clk 0:03:04.8]}
5... Nc6 {[%clk 0:03:01.8]} 6. Be3 {[%clk 0:03:06.1]} 6... Nd4 {[%clk
0:02:44.7]} 7. Qd2 {[%clk 0:02:57]} 7... Qa5 {[%clk 0:02:44.9]} 8. f4 {[%clk
0:02:44.6]} 8... e6 {[%clk 0:02:40.7]} 9. Nf3 {[%clk 0:02:32.8]} 9... Ne7 {[%clk
0:02:36.3]} 10. O-O {[%clk 0:02:29.3]} 10... O-O {[%clk 0:02:35.1]} 11. a3
{[%clk 0:02:18.6]} 11... Nec6 {[%clk 0:02:21]} 12. Nh4 {[%clk 0:02:04.5]} 12...
Bd7 {[%clk 0:01:50.7]} 13. Rf2 {[%clk 0:02:00.3]} 13... f5 {[%clk 0:01:39]} 14.
exf5 {[%clk 0:01:58.2]} 14... gxf5 {[%clk 0:01:36.5]} 15. h3 {[%clk 0:01:58]}
15... Bf6 {[%clk 0:01:30.8]} 16. Nf3 {[%clk 0:01:51.3]} 16... Nxf3+ {[%clk
0:01:24.3]} 17. Bxf3 {[%clk 0:01:52.7]} 17... Nd4 {[%clk 0:01:20.5]} 18. Bg2
{[%clk 0:01:47.9]} 18... Kh8 {[%clk 0:01:17.1]} 19. Re1 {[%clk 0:01:37.3]} 19...
Rg8 {[%clk 0:01:16.7]} 20. Kh2 {[%clk 0:01:36.3]} 20... Rg7 {[%clk 0:01:07.9]}
21. Bh1 {[%clk 0:01:22.9]} 21... Rag8 {[%clk 0:01:07.9]} 22. Rg1 {[%clk
0:01:22.1]} 22... Bh4 {[%clk 0:00:59.3]} 23. Rfg2 {[%clk 0:01:11.7]} 23... Nf3#
{[%clk 0:00:58.3]} 0-1

[Event "*** Titled Tuesday 3|2 Blitz"]
[Site "Chess.com"]
[Date "2015.08.04"]
[Round "4"]
[White "Danirod"]
[Black "fancyknightmaneuvers"]
[Result "0-1"]
[WhiteElo "2373"]
[BlackElo "2192"]
[TimeControl "180+2"]
[EndTime "12:18:35 PDT"]
[Termination "fancyknightmaneuvers won by resignation"]

1. e4 {[%clk 0:03:01.9]} 1... e6 {[%clk 0:02:55.7]} 2. d4 {[%clk 0:03:02.6]}
2... d5 {[%clk 0:02:56.6]} 3. Nd2 {[%clk 0:03:03.9]} 3... c5 {[%clk 0:02:56.9]}
4. exd5 {[%clk 0:03:04.7]} 4... exd5 {[%clk 0:02:57.5]} 5. Ngf3 {[%clk
0:03:05.9]} 5... Nf6 {[%clk 0:02:58.2]} 6. Bb5+ {[%clk 0:03:06.5]} 6... Bd7
{[%clk 0:02:59.5]} 7. Bxd7+ {[%clk 0:03:07.7]} 7... Nbxd7 {[%clk 0:03:01.4]} 8.
O-O {[%clk 0:03:08.6]} 8... Be7 {[%clk 0:03:03]} 9. dxc5 {[%clk 0:03:10]} 9...
Nxc5 {[%clk 0:03:03.3]} 10. Nb3 {[%clk 0:03:11.1]} 10... Nfe4 {[%clk 0:02:59]}
11. Be3 {[%clk 0:03:09.6]} 11... b6 {[%clk 0:02:45.3]} 12. Ne5 {[%clk
0:02:58.3]} 12... Bf6 {[%clk 0:02:15]} 13. Bd4 {[%clk 0:02:56.3]} 13... O-O
{[%clk 0:02:08.6]} 14. c3 {[%clk 0:02:57.7]} 14... Qd6 {[%clk 0:02:03.3]} 15.
Nf3 {[%clk 0:02:57.2]} 15... Rad8 {[%clk 0:01:41.1]} 16. a4 {[%clk 0:02:57.6]}
16... a5 {[%clk 0:01:32]} 17. Bxf6 {[%clk 0:02:57.6]} 17... Qxf6 {[%clk
0:01:31.5]} 18. Nbd4 {[%clk 0:02:58.9]} 18... Rfe8 {[%clk 0:01:21.5]} 19. b4
{[%clk 0:02:59.3]} 19... axb4 {[%clk 0:01:20.8]} 20. cxb4 {[%clk 0:03:01.2]}
20... Ne6 {[%clk 0:01:18.7]} 21. a5 {[%clk 0:02:31.4]} 21... bxa5 {[%clk
0:01:05.3]} 22. bxa5 {[%clk 0:02:32.6]} 22... Nc3 {[%clk 0:01:05.2]} 23. Nxe6
{[%clk 0:02:15.6]} 23... Nxd1 {[%clk 0:00:55.5]} 24. Nxd8 {[%clk 0:02:16.8]}
24... Nc3 {[%clk 0:00:55.2]} 25. Nb7 {[%clk 0:02:17]} 25... Qa6 {[%clk
0:00:51.2]} 26. Nc5 {[%clk 0:02:07.4]} 26... Qb5 {[%clk 0:00:46.6]} 27. Rfe1
{[%clk 0:01:47.8]} 27... Rxe1+ {[%clk 0:00:43]} 28. Rxe1 {[%clk 0:01:48.2]}
28... g6 {[%clk 0:00:39.4]} 29. a6 {[%clk 0:01:36.1]} 29... Qxc5 {[%clk
0:00:38]} 30. a7 {[%clk 0:01:37.6]} 30... Qxa7 {[%clk 0:00:35.5]} 0-1

[Event "*** Titled Tuesday 3|2 Blitz"]
[Site "Chess.com"]
[Date "2015.08.04"]
[Round "4"]
[White "Quinten94"]
[Black "PauloCesarCosta"]
[Result "1-0"]
[WhiteElo "2220"]
[BlackElo "1997"]
[TimeControl "180+2"]
[EndTime "12:18:36 PDT"]
[Termination "Quinten94 won on time"]

1. e4 {[%clk 0:03:01.9]} 1... e6 {[%clk 0:02:56.6]} 2. d4 {[%clk 0:03:01.8]}
2... d5 {[%clk 0:02:57.7]} 3. Nd2 {[%clk 0:03:02.4]} 3... Nf6 {[%clk 0:02:55.4]}
4. e5 {[%clk 0:03:03.6]} 4... Nfd7 {[%clk 0:02:56]} 5. Bd3 {[%clk 0:03:04.5]}
5... c5 {[%clk 0:02:56.8]} 6. c3 {[%clk 0:03:05.6]} 6... Nc6 {[%clk 0:02:58.3]}
7. Ngf3 {[%clk 0:03:06.8]} 7... Qb6 {[%clk 0:02:55.7]} 8. O-O {[%clk 0:03:07.6]}
8... cxd4 {[%clk 0:02:56.4]} 9. cxd4 {[%clk 0:03:08.8]} 9... Nxd4 {[%clk
0:02:52.6]} 10. Nxd4 {[%clk 0:03:09.7]} 10... Qxd4 {[%clk 0:02:54]} 11. Nf3
{[%clk 0:03:10.8]} 11... Qb6 {[%clk 0:02:55.2]} 12. Qa4 {[%clk 0:03:11.8]} 12...
Qb4 {[%clk 0:02:49.5]} 13. Qc2 {[%clk 0:03:12.6]} 13... Qc5 {[%clk 0:02:50.3]}
14. Qe2 {[%clk 0:03:13.3]} 14... Be7 {[%clk 0:02:47.8]} 15. Be3 {[%clk
0:03:10.1]} 15... Qa5 {[%clk 0:02:33]} 16. Rac1 {[%clk 0:03:02]} 16... O-O
{[%clk 0:02:29]} 17. a3 {[%clk 0:02:45.5]} 17... Qd8 {[%clk 0:02:04.7]} 18. Bb1
{[%clk 0:02:33.6]} 18... f5 {[%clk 0:02:01.4]} 19. exf6 {[%clk 0:02:32.6]} 19...
Nxf6 {[%clk 0:02:01.2]} 20. Bd4 {[%clk 0:02:24.8]} 20... Bd7 {[%clk 0:01:54.8]}
21. Ng5 {[%clk 0:02:24.5]} 21... Ne4 {[%clk 0:01:26.9]} 22. Nxe4 {[%clk
0:02:20]} 22... dxe4 {[%clk 0:01:27.6]} 23. Qxe4 {[%clk 0:02:20.9]} 23... g6
{[%clk 0:01:20.7]} 24. Ba2 {[%clk 0:02:06]} 24... Bf6 {[%clk 0:01:06.4]} 25.
Rfd1 {[%clk 0:02:05.2]} 25... Bxd4 {[%clk 0:00:53.3]} 26. Qxd4 {[%clk
0:02:02.8]} 1-0

[Event "*** Titled Tuesday 3|2 Blitz"]
[Site "Chess.com"]
[Date "2015.08.04"]
[Round "4"]
[White "GMHess"]
[Black "ChessWarrior7197"]
[Result "1-0"]
[WhiteElo "2535"]
[BlackElo "2446"]
[TimeControl "180+2"]
[EndTime "12:18:57 PDT"]
[Termination "GMHess won by resignation"]

1. c4 {[%clk 0:02:58.7]} 1... Nf6 {[%clk 0:02:59.4]} 2. Nc3 {[%clk 0:02:59.7]}
2... e6 {[%clk 0:03:00.1]} 3. d4 {[%clk 0:02:55.8]} 3... d5 {[%clk 0:02:57.8]}
4. Nf3 {[%clk 0:02:56.2]} 4... Be7 {[%clk 0:02:58.5]} 5. Bf4 {[%clk 0:02:56.6]}
5... O-O {[%clk 0:02:58]} 6. Qc2 {[%clk 0:02:57.7]} 6... c6 {[%clk 0:02:54.4]}
7. e3 {[%clk 0:02:58.4]} 7... Nbd7 {[%clk 0:02:53.9]} 8. Bd3 {[%clk 0:02:50.6]}
8... dxc4 {[%clk 0:02:47.7]} 9. Bxc4 {[%clk 0:02:51]} 9... Nb6 {[%clk
0:02:46.6]} 10. Bd3 {[%clk 0:02:50.3]} 10... Nbd5 {[%clk 0:02:46.5]} 11. Nxd5
{[%clk 0:02:51.1]} 11... exd5 {[%clk 0:02:43.8]} 12. O-O {[%clk 0:02:51]} 12...
h6 {[%clk 0:02:42.5]} 13. Rab1 {[%clk 0:02:50.3]} 13... Bd6 {[%clk 0:02:40.4]}
14. b4 {[%clk 0:02:29.7]} 14... Bxf4 {[%clk 0:02:40.1]} 15. exf4 {[%clk
0:02:31.6]} 15... a6 {[%clk 0:02:38.4]} 16. a4 {[%clk 0:02:32.1]} 16... Be6
{[%clk 0:02:36.3]} 17. Ne5 {[%clk 0:02:26.9]} 17... Qd6 {[%clk 0:02:30.4]} 18.
b5 {[%clk 0:02:21.8]} 18... axb5 {[%clk 0:02:29.3]} 19. axb5 {[%clk 0:02:23.7]}
19... cxb5 {[%clk 0:02:18.7]} 20. Rxb5 {[%clk 0:02:20.9]} 20... Rfc8 {[%clk
0:02:18.5]} 21. Qb1 {[%clk 0:02:18.6]} 21... Ra4 {[%clk 0:02:05.9]} 22. Rb6
{[%clk 0:02:05.4]} 22... Qa3 {[%clk 0:01:54.3]} 23. f5 {[%clk 0:01:59.6]} 23...
Bd7 {[%clk 0:01:39.9]} 24. Rxf6 {[%clk 0:02:00]} 24... gxf6 {[%clk 0:01:28.9]}
25. Nxd7 {[%clk 0:02:00.8]} 25... Rxd4 {[%clk 0:01:29.3]} 26. Nxf6+ {[%clk
0:01:49.9]} 26... Kg7 {[%clk 0:01:22.2]} 27. Nh5+ {[%clk 0:01:50]} 27... Kf8
{[%clk 0:01:23.3]} 28. Qxb7 {[%clk 0:01:39.1]} 28... Qc3 {[%clk 0:01:09.3]} 29.
Ba6 {[%clk 0:01:32.9]} 29... Re8 {[%clk 0:01:03.2]} 30. Qb6 {[%clk 0:01:26.9]}
30... Qd2 {[%clk 0:00:47.1]} 31. Qd6+ {[%clk 0:01:20.9]} 1-0

[Event "*** Titled Tuesday 3|2 Blitz"]
[Site "Chess.com"]
[Date "2015.08.04"]
[Round "4"]
[White "fpawn"]
[Black "Keranke"]
[Result "0-1"]
[WhiteElo "2106"]
[BlackElo "2531"]
[TimeControl "180+2"]
[EndTime "12:18:57 PDT"]
[Termination "Keranke won by checkmate"]

1. e4 {[%clk 0:02:53.5]} 1... g6 {[%clk 0:03:00.9]} 2. Nc3 {[%clk 0:02:53.2]}
2... Bg7 {[%clk 0:03:02]} 3. d4 {[%clk 0:02:54]} 3... d6 {[%clk 0:02:58]} 4. f4
{[%clk 0:02:53.9]} 4... a6 {[%clk 0:02:54.1]} 5. Nf3 {[%clk 0:02:53.7]} 5... b5
{[%clk 0:02:55.5]} 6. Bd3 {[%clk 0:02:53.6]} 6... Nd7 {[%clk 0:02:56.6]} 7. e5
{[%clk 0:02:53.4]} 7... c5 {[%clk 0:02:56.7]} 8. exd6 {[%clk 0:02:52.3]} 8...
exd6 {[%clk 0:02:55.1]} 9. Ne4 {[%clk 0:02:39.9]} 9... Qc7 {[%clk 0:02:44.6]}
10. O-O {[%clk 0:02:30.7]} 10... Ne7 {[%clk 0:02:45.6]} 11. c3 {[%clk
0:02:17.2]} 11... O-O {[%clk 0:02:46]} 12. dxc5 {[%clk 0:01:55.4]} 12... dxc5
{[%clk 0:02:45.4]} 13. Ng3 {[%clk 0:01:56.2]} 13... Bb7 {[%clk 0:02:40.6]} 14.
Be4 {[%clk 0:01:54.3]} 14... Rad8 {[%clk 0:02:39]} 15. Qc2 {[%clk 0:01:51.5]}
15... c4 {[%clk 0:02:36.4]} 16. Be3 {[%clk 0:01:50.3]} 16... Nd5 {[%clk
0:02:36]} 17. Bxd5 {[%clk 0:01:46.1]} 17... Bxd5 {[%clk 0:02:37.9]} 18. Rad1
{[%clk 0:01:43.9]} 18... Bb7 {[%clk 0:02:38.2]} 19. Ng5 {[%clk 0:01:33.4]} 19...
Nc5 {[%clk 0:02:36.2]} 20. Rxd8 {[%clk 0:01:28.4]} 20... Rxd8 {[%clk 0:02:36.3]}
21. Rd1 {[%clk 0:01:23]} 21... Nd3 {[%clk 0:02:32.6]} 22. Qe2 {[%clk 0:00:58.3]}
22... Re8 {[%clk 0:02:32.5]} 23. Qd2 {[%clk 0:00:49.3]} 23... Nxb2 {[%clk
0:02:22.3]} 24. Qd7 {[%clk 0:00:32.2]} 24... Qc6 {[%clk 0:02:07.9]} 25. Qxc6
{[%clk 0:00:32]} 25... Bxc6 {[%clk 0:02:09]} 26. Rd6 {[%clk 0:00:32.1]} 26...
Ba8 {[%clk 0:02:04.5]} 27. Bd4 {[%clk 0:00:28]} 27... Bxd4+ {[%clk 0:02:04.4]}
28. Rxd4 {[%clk 0:00:28.9]} 28... Nd3 {[%clk 0:02:04.7]} 29. N5e4 {[%clk
0:00:25.6]} 29... Kg7 {[%clk 0:02:04.7]} 30. Kf1 {[%clk 0:00:21.1]} 30... Bxe4
{[%clk 0:02:05.2]} 31. Nxe4 {[%clk 0:00:19.9]} 31... f5 {[%clk 0:02:06.2]} 32.
Nd6 {[%clk 0:00:19.8]} 32... Re1# {[%clk 0:02:06.2]} 0-1

[Event "*** Titled Tuesday 3|2 Blitz"]
[Site "Chess.com"]
[Date "2015.08.04"]
[Round "4"]
[White "Janosik"]
[Black "Haykos"]
[Result "1-0"]
[WhiteElo "2533"]
[BlackElo "2178"]
[TimeControl "180+2"]
[EndTime "12:19:10 PDT"]
[Termination "Janosik won by resignation"]

1. Nf3 {[%clk 0:03:01.9]} 1... g6 {[%clk 0:02:58.1]} 2. c4 {[%clk 0:02:52.4]}
2... Bg7 {[%clk 0:02:57.3]} 3. d4 {[%clk 0:02:53.8]} 3... d6 {[%clk 0:02:58]} 4.
g3 {[%clk 0:02:54.8]} 4... e5 {[%clk 0:02:59.1]} 5. dxe5 {[%clk 0:02:55.2]} 5...
dxe5 {[%clk 0:03:01]} 6. Qxd8+ {[%clk 0:02:56.5]} 6... Kxd8 {[%clk 0:03:02.9]}
7. Nc3 {[%clk 0:02:58.4]} 7... f6 {[%clk 0:02:59.9]} 8. Be3 {[%clk 0:02:59.1]}
8... Be6 {[%clk 0:03:00.1]} 9. O-O-O+ {[%clk 0:02:59.3]} 9... Nd7 {[%clk
0:03:01.4]} 10. Nd2 {[%clk 0:02:53.1]} 10... c6 {[%clk 0:03:02.1]} 11. Nde4
{[%clk 0:02:39.4]} 11... Kc7 {[%clk 0:02:59]} 12. Nc5 {[%clk 0:02:24.4]} 12...
Nxc5 {[%clk 0:02:58.7]} 13. Bxc5 {[%clk 0:02:26.3]} 13... Bf8 {[%clk 0:02:55.2]}
14. Bxf8 {[%clk 0:02:21.9]} 14... Rxf8 {[%clk 0:02:57.1]} 15. c5 {[%clk
0:02:20.4]} 15... b6 {[%clk 0:02:54.9]} 16. Bg2 {[%clk 0:02:17.1]} 16... Nh6
{[%clk 0:02:54.5]} 17. Rd6 {[%clk 0:02:16.2]} 17... Bd7 {[%clk 0:02:37.3]} 18.
Rhd1 {[%clk 0:02:15.8]} 18... Rf7 {[%clk 0:02:35.6]} 19. Ne4 {[%clk 0:02:08.9]}
19... Rhf8 {[%clk 0:02:33.1]} 20. Nxf6 {[%clk 0:02:05.6]} 20... Rxf6 {[%clk
0:02:09.7]} 21. Rxd7+ {[%clk 0:02:06.1]} 21... Kb8 {[%clk 0:02:11.6]} 22. Rxh7
{[%clk 0:02:06.4]} 22... Ng4 {[%clk 0:02:12.5]} 23. Rdd7 {[%clk 0:01:51.9]}
23... Nxf2 {[%clk 0:02:10.4]} 24. Rb7+ {[%clk 0:01:50.9]} 24... Kc8 {[%clk
0:02:10.1]} 25. Rxa7 {[%clk 0:01:52.8]} 25... Kb8 {[%clk 0:02:11.3]} 26. cxb6
{[%clk 0:01:43.2]} 26... e4 {[%clk 0:01:58.6]} 27. a4 {[%clk 0:01:27.9]} 27...
Rd6 {[%clk 0:01:52.9]} 28. a5 {[%clk 0:01:25]} 28... Rfd8 {[%clk 0:01:52.9]} 29.
a6 {[%clk 0:01:19]} 29... Rd1+ {[%clk 0:00:56.9]} 30. Kc2 {[%clk 0:01:19.6]}
30... R8d2+ {[%clk 0:00:41]} 31. Kb3 {[%clk 0:01:20.1]} 1-0

[Event "*** Titled Tuesday 3|2 Blitz"]
[Site "Chess.com"]
[Date "2015.08.04"]
[Round "4"]
[White "Fawolizzo"]
[Black "DanielNaroditsky"]
[Result "0-1"]
[WhiteElo "1897"]
[BlackElo "2509"]
[TimeControl "180+2"]
[EndTime "12:19:14 PDT"]
[Termination "DanielNaroditsky won on time"]

1. d4 {[%clk 0:03:01.9]} 1... c5 {[%clk 0:03:01.6]} 2. c4 {[%clk 0:03:01.2]}
2... cxd4 {[%clk 0:03:02.5]} 3. Qxd4 {[%clk 0:02:59.1]} 3... Nc6 {[%clk
0:03:03.6]} 4. Qd1 {[%clk 0:03:00]} 4... g6 {[%clk 0:03:05]} 5. Nf3 {[%clk
0:03:01]} 5... Bg7 {[%clk 0:03:04.8]} 6. Nc3 {[%clk 0:03:01.5]} 6... Nf6 {[%clk
0:03:05.8]} 7. g3 {[%clk 0:02:59.2]} 7... b6 {[%clk 0:03:07.1]} 8. Bg2 {[%clk
0:03:00.1]} 8... Ba6 {[%clk 0:03:08.4]} 9. Qa4 {[%clk 0:02:52.6]} 9... Bb7
{[%clk 0:03:09]} 10. O-O {[%clk 0:02:52.5]} 10... O-O {[%clk 0:03:10.2]} 11. h3
{[%clk 0:02:52]} 11... Rc8 {[%clk 0:03:11]} 12. Be3 {[%clk 0:02:41.9]} 12... Na5
{[%clk 0:03:11.8]} 13. b3 {[%clk 0:02:41.8]} 13... d5 {[%clk 0:03:12.9]} 14.
Rad1 {[%clk 0:02:35]} 14... e6 {[%clk 0:03:14.2]} 15. Qa3 {[%clk 0:02:15.1]}
15... Re8 {[%clk 0:02:56.7]} 16. c5 {[%clk 0:02:13.7]} 16... bxc5 {[%clk
0:02:54.2]} 17. Bxc5 {[%clk 0:02:12.2]} 17... Nd7 {[%clk 0:02:52.3]} 18. b4
{[%clk 0:01:50.3]} 18... Nc4 {[%clk 0:02:51.6]} 19. Qb3 {[%clk 0:01:49.6]} 19...
Nxc5 {[%clk 0:02:48.4]} 20. bxc5 {[%clk 0:01:45.8]} 20... Ba6 {[%clk 0:02:49.2]}
21. Ne4 {[%clk 0:01:41.6]} 21... Qe7 {[%clk 0:02:32.2]} 22. Nd6 {[%clk
0:01:25.3]} 22... Nxd6 {[%clk 0:02:33.1]} 23. cxd6 {[%clk 0:01:25]} 23... Qxd6
{[%clk 0:02:34.9]} 24. Rfe1 {[%clk 0:01:16.7]} 24... Bc3 {[%clk 0:02:33.8]} 25.
Nd2 {[%clk 0:01:07]} 25... Qb4 {[%clk 0:02:34.5]} 26. Qc2 {[%clk 0:00:50.2]}
26... d4 {[%clk 0:01:56.2]} 27. Bf3 {[%clk 0:00:35.9]} 27... f5 {[%clk
0:01:53.7]} 28. g4 {[%clk 0:00:35]} 28... d3 {[%clk 0:01:47.3]} 29. exd3 {[%clk
0:00:31.8]} 29... Qf4 {[%clk 0:01:48.9]} 30. Kg2 {[%clk 0:00:22.7]} 30... Be5
{[%clk 0:01:38.9]} 0-1

[Event "*** Titled Tuesday 3|2 Blitz"]
[Site "Chess.com"]
[Date "2015.08.04"]
[Round "4"]
[White "Tobi-Wan-Kenobi"]
[Black "rhungaski"]
[Result "1-0"]
[WhiteElo "2365"]
[BlackElo "2485"]
[TimeControl "180+2"]
[EndTime "12:19:24 PDT"]
[Termination "Tobi-Wan-Kenobi won by resignation"]

1. e4 {[%clk 0:03:01.9]} 1... d6 {[%clk 0:03:00.9]} 2. d4 {[%clk 0:03:01.7]}
2... Nf6 {[%clk 0:03:02.2]} 3. Nc3 {[%clk 0:03:02.5]} 3... e5 {[%clk 0:03:01.6]}
4. Nf3 {[%clk 0:03:01.3]} 4... Nbd7 {[%clk 0:03:01.6]} 5. g4 {[%clk 0:03:02.1]}
5... Nxg4 {[%clk 0:03:00.4]} 6. Rg1 {[%clk 0:03:02.3]} 6... Ngf6 {[%clk
0:03:00.6]} 7. Be3 {[%clk 0:03:03.1]} 7... c6 {[%clk 0:02:59.4]} 8. Qd3 {[%clk
0:03:00.6]} 8... Qa5 {[%clk 0:02:50.2]} 9. O-O-O {[%clk 0:02:59.6]} 9... b5
{[%clk 0:02:50.6]} 10. dxe5 {[%clk 0:02:52.2]} 10... dxe5 {[%clk 0:02:48.6]} 11.
Rg5 {[%clk 0:01:28.2]} 11... b4 {[%clk 0:02:43.9]} 12. Nxe5 {[%clk 0:01:11]}
12... bxc3 {[%clk 0:02:28]} 13. Nxd7 {[%clk 0:01:01.5]} 13... cxb2+ {[%clk
0:01:50.1]} 14. Kb1 {[%clk 0:01:00.6]} 14... Qc7 {[%clk 0:01:24.8]} 15. Re5+
{[%clk 0:00:50.6]} 15... Be7 {[%clk 0:01:15.7]} 16. Bc5 {[%clk 0:00:43.8]} 16...
Ng8 {[%clk 0:01:06.7]} 17. Bh3 {[%clk 0:00:32.5]} 17... Qxe5 {[%clk 0:00:49.9]}
18. Nxe5 {[%clk 0:00:30]} 18... Bxh3 {[%clk 0:00:51]} 19. Qxh3 {[%clk
0:00:26.3]} 19... Nf6 {[%clk 0:00:43.1]} 20. Bxe7 {[%clk 0:00:24.3]} 20... Kxe7
{[%clk 0:00:45]} 21. Nxc6+ {[%clk 0:00:24.9]} 21... Kf8 {[%clk 0:00:42.2]} 22.
Qa3+ {[%clk 0:00:24.9]} 1-0

[Event "*** Titled Tuesday 3|2 Blitz"]
[Site "Chess.com"]
[Date "2015.08.04"]
[Round "4"]
[White "Fh2411"]
[Black "FairChess_on_YouTube"]
[Result "0-1"]
[WhiteElo "2160"]
[BlackElo "2719"]
[TimeControl "180+2"]
[EndTime "12:19:50 PDT"]
[Termination "FairChess_on_YouTube won on time"]

1. d4 {[%clk 0:02:55.9]} 1... f5 {[%clk 0:03:00.3]} 2. Nf3 {[%clk 0:02:55.9]}
2... Nf6 {[%clk 0:03:01]} 3. g3 {[%clk 0:02:56.9]} 3... g6 {[%clk 0:03:01.8]} 4.
Bg2 {[%clk 0:02:58.4]} 4... Bg7 {[%clk 0:03:03.4]} 5. O-O {[%clk 0:02:59]} 5...
O-O {[%clk 0:03:05]} 6. c4 {[%clk 0:02:57.3]} 6... d6 {[%clk 0:03:06.1]} 7. b3
{[%clk 0:02:57.5]} 7... e5 {[%clk 0:03:01.7]} 8. Nc3 {[%clk 0:02:45.8]} 8... Nc6
{[%clk 0:02:57]} 9. e3 {[%clk 0:02:27.9]} 9... e4 {[%clk 0:02:55.4]} 10. Nd2
{[%clk 0:02:26.3]} 10... g5 {[%clk 0:02:54.9]} 11. a4 {[%clk 0:02:20.3]} 11...
g4 {[%clk 0:02:55.7]} 12. Ba3 {[%clk 0:02:17.6]} 12... Qe8 {[%clk 0:02:56]} 13.
b4 {[%clk 0:02:17.2]} 13... Nd8 {[%clk 0:02:56.7]} 14. b5 {[%clk 0:02:15.6]}
14... Ne6 {[%clk 0:02:57.3]} 15. Qb3 {[%clk 0:02:04.9]} 15... Kh8 {[%clk
0:02:52.3]} 16. c5 {[%clk 0:01:59]} 16... dxc5 {[%clk 0:02:52.9]} 17. dxc5
{[%clk 0:01:59.2]} 17... Ng5 {[%clk 0:02:52]} 18. Rfd1 {[%clk 0:01:54.3]} 18...
Be6 {[%clk 0:02:48.3]} 19. Qc2 {[%clk 0:01:50.1]} 19... Qh5 {[%clk 0:02:48.8]}
20. Ne2 {[%clk 0:01:41.8]} 20... Nd5 {[%clk 0:02:49.7]} 21. Nf4 {[%clk
0:01:34.8]} 21... Nxf4 {[%clk 0:02:49.9]} 22. exf4 {[%clk 0:01:35.9]} 22... Nf3+
{[%clk 0:02:29.9]} 23. Nxf3 {[%clk 0:01:31.7]} 23... gxf3 {[%clk 0:02:29.2]} 24.
Bf1 {[%clk 0:01:30.5]} 24... Qf7 {[%clk 0:02:14.1]} 25. Bb2 {[%clk 0:01:21.2]}
25... Rad8 {[%clk 0:02:14.5]} 26. Bxg7+ {[%clk 0:01:19.2]} 26... Kxg7 {[%clk
0:02:14.7]} 27. Qc3+ {[%clk 0:01:16.3]} 27... Qf6 {[%clk 0:02:14.3]} 28. Qe3
{[%clk 0:01:16.4]} 28... Rxd1 {[%clk 0:01:57.1]} 29. Rxd1 {[%clk 0:01:15.6]}
29... Rd8 {[%clk 0:01:58.7]} 30. Rxd8 {[%clk 0:01:12.9]} 30... Qxd8 {[%clk
0:02:00.3]} 31. Qc3+ {[%clk 0:01:07.9]} 31... Kf7 {[%clk 0:02:01.2]} 32. Qe5
{[%clk 0:00:57.6]} 32... b6 {[%clk 0:02:02.2]} 33. c6 {[%clk 0:00:52.8]} 33...
Qd6 {[%clk 0:01:57.6]} 34. Qh8 {[%clk 0:00:52.7]} 34... Kg6 {[%clk 0:01:56.6]}
35. h4 {[%clk 0:00:51.1]} 35... h5 {[%clk 0:01:54.3]} 36. Qe8+ {[%clk
0:00:42.2]} 36... Bf7 {[%clk 0:01:51.3]} 37. Qd7 {[%clk 0:00:23.9]} 37... Kf6
{[%clk 0:01:52.2]} 38. Qxd6+ {[%clk 0:00:19.1]} 38... cxd6 {[%clk 0:01:53.3]}
0-1

[Event "*** Titled Tuesday 3|2 Blitz"]
[Site "Chess.com"]
[Date "2015.08.04"]
[Round "4"]
[White "pedromartinez91"]
[Black "alturas_pacificas"]
[Result "0-1"]
[WhiteElo "2121"]
[BlackElo "2093"]
[TimeControl "180+2"]
[EndTime "12:19:52 PDT"]
[Termination "alturas_pacificas won by checkmate"]

1. e4 {[%clk 0:03:01.9]} 1... e5 {[%clk 0:03:00.3]} 2. Nf3 {[%clk 0:03:00.7]}
2... Nf6 {[%clk 0:03:01]} 3. Nxe5 {[%clk 0:02:57.2]} 3... d6 {[%clk 0:03:02.1]}
4. Nf3 {[%clk 0:02:58.1]} 4... Nxe4 {[%clk 0:03:02.8]} 5. d4 {[%clk 0:02:59.1]}
5... d5 {[%clk 0:03:03.7]} 6. Bd3 {[%clk 0:02:58.8]} 6... Bd6 {[%clk 0:03:02.1]}
7. O-O {[%clk 0:02:59]} 7... O-O {[%clk 0:03:02.9]} 8. c4 {[%clk 0:02:59.6]}
8... c6 {[%clk 0:03:02.5]} 9. cxd5 {[%clk 0:03:00.4]} 9... cxd5 {[%clk
0:03:03.3]} 10. Nc3 {[%clk 0:03:01.4]} 10... Nxc3 {[%clk 0:03:04.6]} 11. bxc3
{[%clk 0:03:02.6]} 11... Bg4 {[%clk 0:03:05.7]} 12. Rb1 {[%clk 0:02:59.8]} 12...
Nd7 {[%clk 0:03:05.1]} 13. Rb5 {[%clk 0:02:58.8]} 13... Nb6 {[%clk 0:03:01.9]}
14. h3 {[%clk 0:02:57.2]} 14... Bh5 {[%clk 0:02:47.9]} 15. c4 {[%clk 0:02:56]}
15... Bxf3 {[%clk 0:02:42.1]} 16. Qxf3 {[%clk 0:02:55]} 16... dxc4 {[%clk
0:02:43.3]} 17. Be4 {[%clk 0:02:46.8]} 17... Qd7 {[%clk 0:02:37.8]} 18. Rh5
{[%clk 0:02:44.9]} 18... g6 {[%clk 0:02:34.4]} 19. Rh6 {[%clk 0:02:41.9]} 19...
Rac8 {[%clk 0:02:15.2]} 20. Bg5 {[%clk 0:02:40.9]} 20... f5 {[%clk 0:01:15.6]}
21. Bxb7 {[%clk 0:02:36.7]} 21... Rc7 {[%clk 0:01:12.9]} 22. Bd5+ {[%clk
0:02:36.4]} 22... Kg7 {[%clk 0:01:02.9]} 23. Rh4 {[%clk 0:02:36.2]} 23... Nxd5
{[%clk 0:01:00.9]} 24. Bh6+ {[%clk 0:02:35.2]} 24... Kh8 {[%clk 0:00:59.1]} 25.
Bxf8 {[%clk 0:02:29.6]} 25... Bxf8 {[%clk 0:00:59.9]} 26. g4 {[%clk 0:02:29.4]}
26... c3 {[%clk 0:00:51.8]} 27. gxf5 {[%clk 0:02:23.8]} 27... Qxf5 {[%clk
0:00:52]} 28. Qg3 {[%clk 0:02:23.6]} 28... c2 {[%clk 0:00:47.7]} 29. Rc1 {[%clk
0:01:51.8]} 29... Rc3 {[%clk 0:00:44.8]} 30. Qb8 {[%clk 0:01:45.8]} 30... Kg8
{[%clk 0:00:31]} 31. Rg4 {[%clk 0:01:27.8]} 31... Rxh3 {[%clk 0:00:26.4]} 32.
Rg3 {[%clk 0:01:18]} 32... Rxg3+ {[%clk 0:00:22.8]} 33. Qxg3 {[%clk 0:01:17.4]}
33... Nf4 {[%clk 0:00:20]} 34. Qb3+ {[%clk 0:01:14.8]} 34... Kg7 {[%clk
0:00:16.1]} 35. Rxc2 {[%clk 0:01:15]} 35... Qg4+ {[%clk 0:00:16.9]} 36. Kf1
{[%clk 0:01:10.3]} 36... Qd1# {[%clk 0:00:16.4]} 0-1